bitfinex-derivatives/quotes_BTCF0:USTF0_20250505
["timestamp","ask_amount","ask_price","bid_price","bid_amount"]
[1746439260821,0.426721,94638.0,94637.0,0.6096164]
[1746439266118,0.51348886,94638.0,94637.0,0.6096164]
[1746439268317,0.51348886,94638.0,94637.0,0.59970245]
[1746439268822,0.71195537,94638.0,94637.0,0.59970245]
[1746439269618,0.71195537,94638.0,94636.0,0.0528313]
[1746439269816,0.2445232,94637.0,94636.0,0.0528313]
[1746439270123,0.3645232,94637.0,94636.0,0.0528313]
[1746439270323,0.3962232,94637.0,94636.0,0.0528313]
[1746439270724,0.3962232,94637.0,94636.0,0.2671567]
[1746439271624,0.3972232,94637.0,94636.0,0.2671567]
[1746439272725,0.3972232,94637.0,94636.0,0.2641567]
[1746439272916,0.3982232,94637.0,94636.0,0.2661567]
[1746439278128,0.3982232,94637.0,94636.0,0.2973567]
[1746439281228,0.49102057,94637.0,94636.0,0.2973567]
[1746439281427,0.27969737,94637.0,94636.0,0.2973567]
[1746439282531,0.49102057,94637.0,94636.0,0.2973567]
[1746439286130,0.27969737,94637.0,94636.0,0.2973567]
[1746439286936,0.1869,94637.0,94636.0,0.2973567]
[1746439288426,0.122,94637.0,94636.0,0.6895567]
[1746439289232,0.002,94637.0,94636.0,0.8095567]
[1746439290240,0.002,94637.0,94636.0,0.6895567]
[1746439293233,0.033,94637.0,94636.0,0.6895567]
[1746439295526,0.2443232,94637.0,94636.0,0.6895567]
[1746439295734,0.2443232,94637.0,94636.0,0.6581567]
[1746439296137,0.3643232,94637.0,94636.0,0.6581567]
[1746439300236,0.3643232,94637.0,94636.0,0.6269567]
[1746439301737,0.3643232,94637.0,94636.0,0.6602567]
[1746439302839,0.3643232,94637.0,94636.0,0.2994567]
[1746439305643,0.45712057,94637.0,94636.0,0.2994567]
[1746439308143,0.3643232,94637.0,94636.0,0.2994567]
[1746439319152,0.3951232,94637.0,94636.0,0.2994567]
[1746439327465,0.48792057,94637.0,94636.0,0.2994567]
[1746439330967,0.3951232,94637.0,94636.0,0.2994567]
[1746439335568,0.3951232,94637.0,94636.0,0.2661567]
[1746439341069,0.48792057,94637.0,94636.0,0.2661567]
[1746439341271,0.48792057,94637.0,94636.0,0.2980567]
[1746439344272,0.27659737,94637.0,94636.0,0.2980567]
[1746439345673,0.48792057,94637.0,94636.0,0.2980567]
[1746439346779,0.1838,94637.0,94636.0,0.2980567]
[1746439351484,0.3951232,94637.0,94636.0,0.2980567]
[1746439351682,0.1838,94637.0,94636.0,0.2980567]
[1746439358492,0.27659737,94637.0,94636.0,0.2980567]
[1746439361496,0.48792057,94637.0,94636.0,0.2980567]
[1746439361697,0.3951232,94637.0,94636.0,0.2980567]
[1746439365100,0.1838,94637.0,94636.0,0.2980567]
[1746439369107,0.48038983,94637.0,94636.0,0.2980567]
[1746439371107,0.69171303,94637.0,94636.0,0.2980567]
[1746439371900,0.48038983,94637.0,94636.0,0.2980567]
[1746439374107,0.36038983,94637.0,94636.0,0.2980567]
[1746439375215,0.48038983,94637.0,94636.0,0.2980567]
[1746439376411,0.48038983,94637.0,94636.0,0.3300567]
[1746439378612,0.69171303,94637.0,94636.0,0.3300567]
[1746439379415,0.48038983,94637.0,94636.0,0.3300567]
[1746439381307,0.69171303,94637.0,94636.0,0.2661567]
[1746439382013,0.7845104,94637.0,94636.0,0.2661567]
[1746439384917,0.69171303,94637.0,94636.0,0.2661567]
[1746439390711,0.69171303,94637.0,94636.0,0.2991567]
[1746439392422,0.48038983,94637.0,94636.0,0.2991567]
[1746439392917,0.69171303,94637.0,94636.0,0.2991567]
[1746439396020,0.96136501,94637.0,94636.0,0.2991567]
[1746439399724,1.05416238,94637.0,94636.0,0.2991567]
[1746439404714,1.05416238,94637.0,94628.0,0.2641675]
[1746439404715,0.0528324,94635.0,94628.0,0.2641675]
[1746439404918,0.4108,94629.0,94619.0,0.211352]
[1746439405120,0.2113679,94620.0,94619.0,0.3170304]
[1746439405818,0.2073679,94620.0,94619.0,0.3170304]
[1746439406021,0.2707679,94620.0,94619.0,0.3170304]
[1746439406219,0.3907679,94620.0,94619.0,0.3170304]
[1746439406526,0.3917679,94620.0,94619.0,0.3170304]
[1746439406929,0.3927679,94620.0,94619.0,0.3210304]
[1746439408347,0.3927679,94620.0,94619.0,0.004]
[1746439408348,0.54845435,94620.0,94619.0,0.004]
[1746439408521,0.211388,94608.0,94605.0,0.211394]
[1746439408725,0.311388,94608.0,94605.0,0.2113944]
[1746439408922,0.311388,94608.0,94599.0,0.3608]
[1746439408923,0.311388,94608.0,94607.0,0.2129757]
[1746439409226,0.58707445,94608.0,94607.0,0.2129757]
[1746439409426,0.59487087,94608.0,94607.0,0.2129757]
[1746439409623,0.65737087,94608.0,94607.0,0.2129757]
[1746439409820,0.55837087,94608.0,94607.0,0.2129757]
[1746439410024,0.55937087,94608.0,94607.0,0.2129757]
[1746439410931,0.62413087,94608.0,94607.0,0.2129757]
[1746439413633,0.72413087,94608.0,94607.0,0.2129757]
[1746439414028,0.93934786,94608.0,94607.0,0.2129757]
[1746439415034,0.93934786,94608.0,94607.0,0.0015855]
[1746439415338,0.2113925,94606.0,94605.0,0.211394]
[1746439416037,0.31709459,94606.0,94605.0,0.211394]
[1746439416231,0.43709459,94606.0,94605.0,0.211394]
[1746439416430,0.43809459,94606.0,94605.0,0.211394]
[1746439417133,0.2114036,94602.0,94601.0,0.0528508]
[1746439417437,0.2114036,94601.0,94600.0,0.311405]
[1746439417633,0.2750036,94601.0,94600.0,0.311405]
[1746439418231,0.50071016,94601.0,94600.0,0.311405]
[1746439418629,0.50171016,94601.0,94600.0,0.311405]
[1746439419231,0.0528531,94597.0,94590.0,0.0528569]
[1746439419438,0.2114305,94589.0,94588.0,0.5738096]
[1746439419936,0.317146,94589.0,94588.0,0.5738096]
[1746439420135,0.437146,94589.0,94588.0,0.5738096]
[1746439421328,0.439146,94589.0,94588.0,0.5738096]
[1746439421539,0.441146,94589.0,94588.0,0.5738096]
[1746439429748,0.2643294,94576.0,94575.0,0.2643271]
[1746439430134,0.2643294,94576.0,94575.0,0.2968271]
[1746439431241,0.331464,94576.0,94575.0,0.2968271]
[1746439431641,0.333464,94576.0,94575.0,0.2968271]
[1746439432543,0.122,94576.0,94575.0,0.2968271]
[1746439432743,0.3334595,94576.0,94575.0,0.2968271]
[1746439432937,0.1523,94576.0,94575.0,0.2968271]
[1746439433141,0.0343,94576.0,94575.0,0.2968271]
[1746439434241,0.1543,94576.0,94575.0,0.2968271]
[1746439435243,0.0343,94576.0,94575.0,0.2968271]
[1746439438039,0.1543,94576.0,94575.0,0.2968271]
[1746439441055,0.1543,94576.0,94575.0,0.3279271]
[1746439442267,0.0343,94576.0,94575.0,0.3279271]
[1746439443061,0.1543,94576.0,94575.0,0.3279271]
[1746439444170,0.0343,94576.0,94575.0,0.3279271]
[1746439445068,0.1543,94576.0,94575.0,0.3279271]
[1746439452079,0.1523,94576.0,94575.0,0.3279271]
[1746439452369,0.2114662,94573.0,94562.0,0.3608]
[1746439452570,0.2114662,94573.0,94503.0,0.4097]
[1746439452571,0.15,94556.0,94532.0,0.3608]
[1746439452768,0.05,94556.0,94555.0,0.2115065]
[1746439453165,0.43724318,94556.0,94555.0,0.2115065]
[1746439453475,0.44514431,94556.0,94555.0,0.2115065]
[1746439453675,0.44514431,94556.0,94555.0,0.2756065]
[1746439453873,0.70020533,94556.0,94555.0,0.2756065]
[1746439454064,0.58020533,94556.0,94555.0,0.2756065]
[1746439454264,0.58320533,94556.0,94555.0,0.2756065]
[1746439454878,0.58220533,94556.0,94555.0,0.2756065]
[1746439455177,0.2115177,94551.0,94550.0,0.2115171]
[1746439455375,0.2115445,94538.0,94537.0,0.26601297]
[1746439456768,0.2115445,94538.0,94537.0,0.29661297]
[1746439457168,0.3335445,94538.0,94537.0,0.32741297]
[1746439458680,0.3355445,94538.0,94537.0,0.32741297]
[1746439459176,0.2155445,94538.0,94537.0,0.32741297]
[1746439460072,0.3355445,94538.0,94537.0,0.00158667]
[1746439460277,0.44132263,94538.0,94537.0,0.21313347]
[1746439461684,0.3355445,94538.0,94537.0,0.21313347]
[1746439461884,0.124,94538.0,94537.0,0.21313347]
[1746439462180,0.004,94538.0,94537.0,0.69393347]
[1746439462380,0.004,94538.0,94537.0,0.75833347]
[1746439462574,0.004,94538.0,94537.0,0.86411347]
[1746439462775,0.2115065,94555.0,94554.0,0.2115065]
[1746439463271,0.2115065,94555.0,94554.0,0.4269065]
[1746439463977,0.2135065,94555.0,94554.0,0.4269065]
[1746439464284,0.2135065,94555.0,94554.0,0.2115065]
[1746439464486,0.0528772,94554.0,94537.0,0.00158667]
[1746439464675,0.2115445,94538.0,94537.0,0.00158667]
[1746439465074,0.3315445,94538.0,94537.0,0.00158667]
[1746439466876,0.43732263,94538.0,94537.0,0.00158667]
[1746439467186,0.48932263,94538.0,94537.0,7e-08]
[1746439467877,0.2115848,94520.0,94519.0,0.243287]
[1746439468779,0.2105848,94520.0,94519.0,0.243287]
[1746439469283,0.2105848,94520.0,94519.0,0.305687]
[1746439469479,0.3608,94526.0,94525.0,0.2115736]
[1746439469676,0.2115662,94529.0,94528.0,0.2115669]
[1746439470589,0.002,94538.0,94537.0,0.2115468]
[1746439470778,0.002,94538.0,94537.0,0.5723468]
[1746439470979,0.002,94538.0,94537.0,0.6369468]
[1746439471283,0.0319,94538.0,94537.0,0.6369468]
[1746439472184,0.0339,94538.0,94537.0,0.6369468]
[1746439473688,0.0359,94538.0,94537.0,0.6369468]
[1746439476289,0.0359,94538.0,94537.0,0.5723468]
[1746439476492,0.2474445,94538.0,94537.0,0.5723468]
[1746439477190,0.3674445,94538.0,94537.0,0.5723468]
[1746439477391,0.1559,94538.0,94537.0,0.5723468]
[1746439479294,0.0359,94538.0,94537.0,0.5723468]
[1746439483498,0.0339,94538.0,94537.0,0.5723468]
[1746439483798,0.0359,94538.0,94537.0,0.5723468]
[1746439487395,0.0359,94538.0,94537.0,0.6048468]
[1746439487795,0.0359,94538.0,94537.0,0.5723468]
[1746439488195,0.1559,94538.0,94537.0,0.6050468]
[1746439488807,0.1559,94538.0,94537.0,0.6354468]
[1746439489207,0.0359,94538.0,94537.0,0.6354468]
[1746439495210,0.0359,94538.0,94537.0,0.7554468]
[1746439496206,0.0359,94538.0,94537.0,0.6354468]
[1746439499107,0.0359,94538.0,94537.0,0.7554468]
[1746439500814,0.3608,94549.0,94548.0,0.2115221]
[1746439501609,0.3608,94549.0,94548.0,0.2422221]
[1746439502604,0.3628,94549.0,94548.0,0.2422221]
[1746439503112,0.3648,94549.0,94548.0,0.2422221]
[1746439503307,0.5763199,94549.0,94548.0,0.2115221]
[1746439503508,0.3648,94549.0,94548.0,0.2115221]
[1746439503814,0.5763199,94549.0,94548.0,0.2115221]
[1746439504113,0.6963199,94549.0,94548.0,0.2115221]
[1746439504319,0.7618199,94549.0,94548.0,0.2115221]
[1746439505310,0.86758572,94549.0,94548.0,0.2115221]
[1746439512217,0.38678572,94549.0,94548.0,0.2115221]
[1746439516322,0.17526582,94549.0,94548.0,0.2115221]
[1746439516625,0.38678572,94549.0,94548.0,0.2115221]
[1746439524731,0.17526582,94549.0,94548.0,0.2115221]
[1746439525029,0.38678572,94549.0,94548.0,0.2115221]
[1746439525231,0.38678572,94549.0,94548.0,0.2435221]
[1746439526030,0.38678572,94549.0,94548.0,0.3083221]
[1746439530734,0.2486199,94549.0,94548.0,0.3083221]
[1746439530930,0.2790199,94549.0,94548.0,0.3083221]
[1746439533029,0.2790199,94549.0,94548.0,0.2438221]
[1746439533238,0.2790199,94549.0,94548.0,0.2115221]
[1746439534036,0.2790199,94549.0,94548.0,0.2423221]
[1746439535835,0.2790199,94549.0,94548.0,0.2734221]
[1746439542041,0.2486199,94549.0,94548.0,0.2734221]
[1746439542242,0.2486199,94549.0,94548.0,0.3934221]
[1746439543235,0.2486199,94549.0,94548.0,0.2734221]
[1746439543431,0.2816199,94549.0,94548.0,0.2734221]
[1746439543942,0.29238215,94549.0,94548.0,0.2734221]
[1746439553169,0.29238215,94549.0,94548.0,0.3934221]
[1746439555163,0.29238215,94549.0,94548.0,0.2734221]
[1746439560367,0.29238215,94549.0,94548.0,0.2423221]
[1746439560567,0.32428215,94549.0,94548.0,0.2423221]
[1746439562869,0.32428215,94549.0,94548.0,0.2115221]
[1746439564762,0.2115244,94547.0,94546.0,0.2438261]
[1746439564964,0.5723244,94547.0,94546.0,0.0323]
[1746439565157,0.2644244,94542.0,94541.0,0.2115357]
[1746439565563,0.3615244,94542.0,94541.0,0.2115357]
[1746439566266,0.4835244,94542.0,94541.0,0.2115357]
[1746439567372,0.4855244,94542.0,94541.0,0.2115357]
[1746439568171,0.3655244,94542.0,94541.0,0.2115357]
[1746439569770,0.2115602,94532.0,94531.0,0.264438]
[1746439570973,0.25680192,94532.0,94531.0,0.295438]
[1746439571570,0.61760192,94532.0,94531.0,0.295438]
[1746439571778,0.61960192,94532.0,94531.0,0.295438]
[1746439572074,0.73960192,94532.0,94531.0,0.295438]
[1746439572871,0.73960192,94532.0,94530.0,0.0528896]
[1746439572872,0.211596,94516.0,94515.0,0.264478]
[1746439573068,0.052892,94528.0,94515.0,0.0528977]
[1746439573265,0.381671,94526.0,94525.0,0.2115691]
[1746439573462,0.2971765,94526.0,94525.0,0.2115691]
[1746439573968,0.2971765,94526.0,94525.0,0.2440691]
[1746439574169,0.2971765,94526.0,94525.0,0.2748691]
[1746439574370,0.2644765,94526.0,94525.0,0.2748691]
[1746439575378,0.2664765,94526.0,94525.0,0.2748691]
[1746439576480,0.2684765,94526.0,94525.0,0.2748691]
[1746439577179,0.2684765,94526.0,94525.0,0.3948691]
[1746439577782,0.2996765,94526.0,94525.0,0.3948691]
[1746439578280,0.2996765,94526.0,94525.0,0.2748691]
[1746439585582,0.2115938,94516.0,94515.0,0.3173765]
[1746439585775,0.2115938,94516.0,94515.0,0.370275]
[1746439586883,0.2442938,94516.0,94515.0,0.401975]
[1746439587480,0.6070938,94516.0,94515.0,0.401975]
[1746439589193,0.6070938,94516.0,94506.0,0.0625]
[1746439589194,0.2116161,94506.0,94502.0,0.00158726]
[1746439589481,0.5724161,94506.0,94502.0,0.00158726]
[1746439589681,0.6224161,94506.0,94502.0,0.00158726]
[1746439589886,0.72821885,94506.0,94502.0,0.00158726]
[1746439590186,0.79141885,94506.0,94502.0,0.00158726]
[1746439590582,0.80233114,94506.0,94502.0,0.00158726]
[1746439591176,0.92233114,94506.0,94502.0,0.00158726]
[1746439591381,0.81652839,94506.0,94502.0,0.00158726]
[1746439591582,0.81652839,94506.0,94503.0,0.0314]
[1746439592176,0.58632839,94506.0,94505.0,0.21267654]
[1746439592377,0.22552839,94506.0,94505.0,0.21267654]
[1746439592780,0.22452839,94506.0,94505.0,0.21267654]
[1746439593185,0.22452839,94506.0,94505.0,0.33267654]
[1746439593388,0.01291229,94506.0,94505.0,0.33267654]
[1746439595083,0.22452839,94506.0,94505.0,0.33267654]
[1746439595782,0.01291229,94506.0,94505.0,0.33267654]
[1746439596285,0.22452839,94506.0,94505.0,0.33267654]
[1746439597191,0.01291229,94506.0,94505.0,0.33267654]
[1746439598390,0.22452839,94506.0,94505.0,0.33267654]
[1746439601387,0.07691229,94506.0,94505.0,0.33267654]
[1746439601592,0.28852839,94506.0,94505.0,0.33267654]
[1746439604593,0.07691229,94506.0,94505.0,0.33267654]
[1746439604996,0.28852839,94506.0,94505.0,0.33267654]
[1746439605297,0.07691229,94506.0,94505.0,0.33267654]
[1746439605895,0.28852839,94506.0,94505.0,0.33267654]
[1746439606087,0.28852839,94506.0,94505.0,0.21267654]
[1746439607694,0.07691229,94506.0,94505.0,0.21267654]
[1746439608092,0.07691229,94506.0,94505.0,0.33267654]
[1746439608292,0.04451229,94506.0,94505.0,0.33267654]
[1746439612096,0.04430846,94506.0,94505.0,0.33267654]
[1746439612398,0.01270846,94506.0,94505.0,0.33267654]
[1746439615295,0.22432456,94506.0,94505.0,0.33267654]
[1746439615500,0.01270846,94506.0,94505.0,0.33267654]
[1746439615895,0.07400846,94506.0,94505.0,0.33267654]
[1746439620102,0.28562456,94506.0,94505.0,0.33267654]
[1746439621188,0.28562456,94506.0,94505.0,0.21267654]
[1746439622206,0.28562456,94506.0,94505.0,0.33267654]
[1746439623099,0.28562456,94506.0,94505.0,0.21267654]
[1746439624105,0.28562456,94506.0,94505.0,0.33267654]
[1746439625103,0.28562456,94506.0,94505.0,0.21267654]
[1746439626208,0.28562456,94506.0,94505.0,0.33267654]
[1746439626897,0.28362456,94506.0,94505.0,0.33267654]
[1746439627104,0.28562456,94506.0,94505.0,0.33267654]
[1746439627401,0.28562456,94506.0,94505.0,0.21267654]
[1746439627602,0.28482839,94506.0,94505.0,0.21267654]
[1746439631109,0.28482839,94506.0,94505.0,0.33267654]
[1746439631501,0.28482839,94506.0,94505.0,0.36297654]
[1746439632108,0.28482839,94506.0,94505.0,0.24297654]
[1746439633103,0.28482839,94506.0,94505.0,0.36297654]
[1746439636210,0.04211229,94506.0,94505.0,0.24297654]
[1746439636411,0.25372839,94506.0,94505.0,0.24297654]
[1746439642112,0.25372839,94506.0,94505.0,0.36297654]
[1746439644210,0.25372839,94506.0,94505.0,0.24297654]
[1746439644412,0.28602839,94506.0,94505.0,0.24297654]
[1746439647315,0.28602839,94506.0,94505.0,0.36297654]
[1746439679248,0.04211229,94506.0,94505.0,0.36297654]
[1746439679448,0.25372839,94506.0,94505.0,0.39437654]
[1746439679843,0.28622839,94506.0,94505.0,0.39437654]
[1746439682456,0.07461229,94506.0,94505.0,0.39437654]
[1746439682852,0.28622839,94506.0,94505.0,0.39437654]
[1746439683450,0.07461229,94506.0,94505.0,0.39437654]
[1746439683652,0.28622839,94506.0,94505.0,0.39437654]
[1746439685651,0.07461229,94506.0,94505.0,0.39437654]
[1746439686050,0.28622839,94506.0,94505.0,0.39437654]
[1746439689158,0.28622839,94506.0,94505.0,0.27437654]
[1746439691154,0.28622839,94506.0,94505.0,0.39437654]
[1746439693368,0.28622839,94506.0,94505.0,0.36297654]
[1746439694257,0.28622839,94506.0,94505.0,0.24297654]
[1746439694459,0.07461229,94506.0,94505.0,0.24297654]
[1746439694957,0.28622839,94506.0,94505.0,0.24297654]
[1746439695167,0.28622839,94506.0,94505.0,0.36297654]
[1746439698067,0.28622839,94506.0,94505.0,0.24297654]
[1746439698265,0.07461229,94506.0,94505.0,0.24297654]
[1746439698469,0.28622839,94506.0,94505.0,0.24297654]
[1746439700373,0.39204233,94506.0,94505.0,1e-08]
[1746439700675,0.2116229,94503.0,94502.0,0.21321236]
[1746439700872,0.5724229,94503.0,94502.0,0.21321236]
[1746439701576,0.6356229,94503.0,94502.0,0.21321236]
[1746439702075,0.6406229,94503.0,94502.0,0.21321236]
[1746439703368,0.65105154,94503.0,94502.0,0.00158726]
[1746439703773,0.75686884,94503.0,94502.0,0.00158726]
[1746439704171,0.87686884,94503.0,94502.0,0.00158726]
[1746439705275,0.75686884,94503.0,94502.0,0.00158726]
[1746439707083,0.87686884,94503.0,94502.0,0.00158726]
[1746439707783,0.87686884,94503.0,94502.0,0.21321236]
[1746439708085,0.75686884,94503.0,94502.0,0.00158726]
[1746439708470,0.75686884,94503.0,94502.0,0.21321236]
[1746439708675,0.75686884,94503.0,94502.0,0.00158726]
[1746439708870,0.80686884,94503.0,94502.0,0.00158726]
[1746439710183,0.92686884,94503.0,94502.0,0.00158726]
[1746439712387,0.2645733,94488.0,94487.0,0.2116542]
[1746439712584,0.2116587,94488.0,94487.0,0.2431542]
[1746439712782,0.2755587,94488.0,94487.0,0.3086542]
[1746439713085,0.2755587,94488.0,94487.0,0.4286542]
[1746439713780,0.2785587,94488.0,94487.0,0.4286542]
[1746439714477,0.2815587,94488.0,94487.0,0.4286542]
[1746439720693,0.006,94488.0,94487.0,0.43926824]
[1746439720892,0.003,94488.0,94487.0,0.43926824]
[1746439721195,0.2176565,94488.0,94487.0,0.43926824]
[1746439721486,0.006,94488.0,94487.0,0.43926824]
[1746439735199,0.006,94488.0,94487.0,0.4286542]
[1746439736495,0.006,94488.0,94487.0,0.3631542]
[1746439736695,0.006,94488.0,94487.0,0.1515]
[1746439736696,0.2176565,94488.0,94487.0,0.1515]
[1746439736898,0.22804092,94488.0,94487.0,0.12]
[1746439737098,0.29044092,94488.0,94487.0,0.12]
[1746439739493,0.2800565,94488.0,94487.0,0.12]
[1746439739800,0.29057724,94488.0,94487.0,0.12]
[1746439744000,0.2800565,94488.0,94487.0,0.12]
[1746439745403,0.29050295,94488.0,94487.0,0.12]
[1746439746297,0.65130295,94488.0,94487.0,0.12]
[1746439746497,0.006,94488.0,94487.0,0.3316587]
[1746439746904,0.2176565,94488.0,94487.0,0.3316587]
[1746439747104,0.2176565,94488.0,94487.0,0.3936587]
[1746439747598,0.006,94488.0,94487.0,0.3936587]
[1746439747902,0.005,94488.0,94487.0,0.3936587]
[1746439749903,0.0327,94499.0,94498.0,0.2116341]
[1746439750104,0.0327,94499.0,94498.0,0.3316341]
[1746439750902,0.0347,94499.0,94498.0,0.3316341]
[1746439751303,0.0367,94499.0,94498.0,0.3316341]
[1746439756904,0.0683,94499.0,94498.0,0.3316341]
[1746439761197,0.0683,94499.0,94498.0,0.3635341]
[1746439764714,0.0356,94499.0,94498.0,0.3635341]
[1746439765102,0.2472318,94499.0,94498.0,0.3635341]
[1746439765799,0.2472318,94499.0,94498.0,0.3945341]
[1746439775602,0.2790318,94499.0,94498.0,0.3945341]
[1746439776608,0.2790318,94499.0,94498.0,0.3635341]
[1746439793214,0.2790318,94499.0,94498.0,0.2116341]
[1746439804826,0.0529098,94496.0,94492.0,0.3608]
[1746439805021,0.2116453,94494.0,94493.0,0.2645515]
[1746439805521,0.2749453,94494.0,94493.0,0.2645515]
[1746439805719,0.2749453,94494.0,94493.0,0.2956515]
[1746439806625,0.2749453,94494.0,94493.0,0.3485627]
[1746439807123,0.2749453,94494.0,94493.0,0.3515627]
[1746439807330,0.2779453,94494.0,94493.0,0.3515627]
[1746439807522,0.2799453,94494.0,94493.0,0.3525627]
[1746439809034,0.2799453,94494.0,94493.0,0.2467408]
[1746439820937,0.2799453,94494.0,94493.0,0.2769408]
[1746439821141,0.2799453,94494.0,94493.0,0.3969408]
[1746439822140,0.2799453,94494.0,94493.0,0.2769408]
[1746439823137,0.2799453,94494.0,94493.0,0.3969408]
[1746439824145,0.2799453,94494.0,94493.0,0.2769408]
[1746439825350,0.2799453,94494.0,94493.0,0.3969408]
[1746439826349,0.2799453,94494.0,94493.0,0.2769408]
[1746439827045,0.2799453,94494.0,94493.0,0.3969408]
[1746439829251,0.2799453,94494.0,94493.0,0.2769408]
[1746439831142,0.2799453,94494.0,94493.0,0.3969408]
[1746439832553,0.005,94494.0,94493.0,0.3969408]
[1746439849163,0.216643,94494.0,94493.0,0.3969408]
[1746439849564,0.278743,94494.0,94493.0,0.3667408]
[1746439849760,0.0671,94494.0,94493.0,0.3667408]
[1746439853158,0.278743,94494.0,94493.0,0.3667408]
[1746439855169,0.278743,94494.0,94493.0,0.2467408]
[1746439858976,0.0671,94494.0,94493.0,0.2467408]
[1746439859270,0.278743,94494.0,94493.0,0.2467408]
[1746439859763,0.0671,94494.0,94493.0,0.2467408]
[1746439860171,0.0671,94494.0,94493.0,0.3667408]
[1746439862374,0.278743,94494.0,94493.0,0.3667408]
[1746439862977,0.0671,94494.0,94493.0,0.3667408]
[1746439863274,0.278743,94494.0,94493.0,0.3667408]
[1746439863479,0.0671,94494.0,94493.0,0.3667408]
[1746439868879,0.0671,94494.0,94493.0,0.7275408]
[1746439872381,0.0671,94494.0,94493.0,0.6075408]
[1746439875070,0.0671,94494.0,94493.0,0.7275408]
[1746439878083,0.0671,94494.0,94493.0,0.3667408]
[1746439878273,0.0671,94494.0,94493.0,0.7275408]
[1746439879184,0.0671,94494.0,94493.0,0.3667408]
[1746439879383,0.0671,94494.0,94493.0,0.7275408]
[1746439883280,0.0671,94494.0,94493.0,0.7913408]
[1746439886277,0.0671,94494.0,94493.0,0.4305408]
[1746439886480,0.0671,94494.0,94493.0,0.7913408]
[1746439889287,0.278743,94494.0,94493.0,0.7913408]
[1746439889482,0.278743,94494.0,94493.0,0.7275408]
[1746439889684,0.0671,94494.0,94493.0,0.7275408]
[1746439895196,0.0671,94494.0,94493.0,0.3667408]
[1746439895397,0.0671,94494.0,94493.0,0.7275408]
[1746439903691,0.278743,94494.0,94493.0,0.7275408]
[1746439903890,0.0671,94494.0,94493.0,0.7275408]
[1746439904799,0.278743,94494.0,94493.0,0.3356408]
[1746439905298,0.278743,94494.0,94493.0,0.2156408]
[1746439906197,0.278743,94494.0,94493.0,0.2473408]
[1746439910788,0.0671,94494.0,94493.0,0.2473408]
[1746439911601,0.278743,94494.0,94493.0,0.2473408]
[1746439916196,0.278743,94494.0,94493.0,0.3673408]
[1746439917508,0.0671,94494.0,94493.0,0.3673408]
[1746439918597,0.0671,94494.0,94493.0,0.3994408]
[1746439921614,0.036,94494.0,94493.0,0.3994408]
[1746439922003,0.005,94494.0,94493.0,0.3994408]
[1746439922207,0.2115919,94517.0,94493.0,0.1878]
[1746439922505,0.2115919,94517.0,94508.0,0.2116117]
[1746439922506,0.0307,94509.0,94508.0,0.2116117]
[1746439922710,0.0307,94509.0,94508.0,0.6697117]
[1746439923107,0.0307,94509.0,94508.0,0.7897117]
[1746439923314,0.0331,94514.0,94513.0,0.2116005]
[1746439923720,0.0313,94515.0,94514.0,0.2115982]
[1746439924107,0.0313,94515.0,94514.0,0.3315982]
[1746439925116,0.0333,94515.0,94514.0,0.3365982]
[1746439925303,0.0333,94515.0,94514.0,0.3994982]
[1746439925511,0.0353,94515.0,94514.0,0.4034982]
[1746439926025,0.0353,94515.0,94514.0,0.3708982]
[1746439926817,0.0684,94515.0,94514.0,0.3708982]
[1746439927418,0.279996,94515.0,94514.0,0.3708982]
[1746439927716,0.2880701,94515.0,94514.0,0.3708982]
[1746439941216,0.2236701,94515.0,94514.0,0.4016982]
[1746439941411,0.0120741,94515.0,94514.0,0.4016982]
[1746439945021,0.2236701,94515.0,94514.0,0.4016982]
[1746439945717,0.0120741,94515.0,94514.0,0.4016982]
[1746439946525,0.004,94515.0,94514.0,0.4016982]
[1746439946927,0.0015,94520.0,94519.0,0.211587]
[1746439947124,0.0015,94520.0,94519.0,0.572387]
[1746439947330,0.0015,94520.0,94519.0,0.692387]
[1746439947719,0.0015,94520.0,94519.0,0.755987]
[1746439948329,0.0015,94520.0,94519.0,0.760987]
[1746439948528,0.0035,94520.0,94519.0,0.760987]
[1746439949627,0.0055,94520.0,94519.0,0.764987]
[1746439953818,0.00791204,94539.0,94529.0,0.0528908]
[1746439954026,0.00791204,94539.0,94535.0,0.5723512]
[1746439954324,0.03,94541.0,94535.0,0.5723512]
[1746439954730,0.03,94541.0,94535.0,0.6363512]
[1746439955231,0.03,94541.0,94535.0,0.7563512]
[1746439955432,0.005,94536.0,94535.0,0.7633512]
[1746439956239,0.005,94536.0,94535.0,0.7693512]
[1746439958939,0.216549,94536.0,94535.0,0.7382512]
[1746439959836,0.280349,94536.0,94535.0,0.7382512]
[1746439960726,0.0688,94536.0,94535.0,0.7382512]
[1746439970340,0.0688,94536.0,94535.0,0.3774512]
[1746439970539,0.0688,94536.0,94535.0,0.7382512]
[1746439972945,0.0688,94536.0,94535.0,0.3774512]
[1746439973148,0.0688,94536.0,94535.0,0.7053512]
[1746439973852,0.0688,94536.0,94535.0,0.7364512]
[1746439976053,0.0688,94536.0,94535.0,0.3756512]
[1746439976245,0.0688,94536.0,94535.0,0.7364512]
[1746439977953,0.0688,94536.0,94535.0,0.7053512]
[1746439979552,0.0688,94536.0,94535.0,0.7381512]
[1746439980951,0.280349,94536.0,94535.0,0.7053512]
[1746439981349,0.0688,94536.0,94535.0,0.7053512]
[1746439981654,0.280349,94536.0,94535.0,0.7053512]
[1746439984955,0.280349,94536.0,94535.0,0.3445512]
[1746439999968,0.280349,94536.0,94535.0,0.3769512]
[1746440012367,0.280349,94536.0,94535.0,0.3445512]
[1746440012669,0.74692936,94536.0,94535.0,0.133]
[1746440012869,0.3173684,94525.0,94522.0,0.0528948]
[1746440013068,0.0935,94524.0,94523.0,0.031]
[1746440013570,0.3050781,94524.0,94523.0,0.2425758]
[1746440014274,0.3050781,94524.0,94523.0,0.3625758]
[1746440014676,0.3090781,94524.0,94523.0,0.3775758]
[1746440014876,0.31974616,94524.0,94523.0,0.3775758]
[1746440017676,0.42553995,94524.0,94523.0,0.3775758]
[1746440027978,0.42553995,94524.0,94523.0,0.166]
[1746440028167,0.89213195,94524.0,94523.0,0.135]
[1746440029172,0.89213195,94524.0,94523.0,0.015]
[1746440029679,0.89213195,94524.0,94523.0,0.2265781]
[1746440031282,0.89213195,94524.0,94523.0,0.015]
[1746440032175,0.89213195,94524.0,94523.0,0.166]
[1746440033285,0.89213195,94524.0,94523.0,0.046]
[1746440034184,0.89213195,94524.0,94523.0,0.166]
[1746440038087,0.78633995,94524.0,94523.0,0.166]
[1746440038891,0.78633995,94524.0,94523.0,0.135]
[1746440039498,0.78633995,94524.0,94523.0,0.165]
[1746440043099,0.78633995,94524.0,94523.0,0.045]
[1746440044191,0.78633995,94524.0,94523.0,0.165]